fUST/lending_fUST_20250725
["ID","MTS","AMOUNT","RATE_DAILY","PERIOD"]
[374666669,1753405845446,-460.0,0.00017988,2]
[374666670,1753405845455,-460.0,0.00017988,2]
[374666671,1753405845466,-460.0,0.00017988,2]
[374666672,1753405845476,-600.06,0.00017988,2]
[374666673,1753405845485,-460.0,0.00017988,2]
[374666674,1753405845495,-460.0,0.00017988,2]
[374666675,1753405845505,-460.0,0.00017988,2]
[374666676,1753405845514,-460.0,0.00017988,2]
[374666677,1753405845524,-460.0,0.00017988,2]
[374666678,1753405845533,-460.0,0.00017988,2]
[374666679,1753405845543,-460.0,0.00017988,2]
[374666680,1753405845554,-649.29,0.00017988,2]
[374666681,1753405845563,-534.98,0.00017988,2]
[374666682,1753405845572,-460.0,0.00017988,2]
[374666683,1753405845582,-460.0,0.00017988,2]
[374666684,1753405845591,-460.0,0.00017988,2]
[374666685,1753405845600,-632.98,0.00017988,2]
[374666686,1753405845610,-700.52,0.00017988,2]
[374666687,1753405845619,-570.48,0.00017988,2]
[374666688,1753405845628,-460.0,0.00017988,2]
[374666689,1753405845638,-462.94820263,0.00017988,2]
[374666690,1753405845648,-1352.89,0.00017988,2]
[374666691,1753405845659,-1205.96,0.00017988,2]
[374666692,1753405845668,-460.0,0.00017988,2]
[374666693,1753405845678,-696.97,0.00017988,2]
[374666694,1753405845687,-468.43816691,0.00017988,2]
[374666695,1753405845697,-542.27,0.00017988,2]
[374666696,1753405845706,-172.36816867,0.00017988,2]
[374666697,1753405845717,-460.0,0.00017988,2]
[374666698,1753405845726,-625.29,0.00017988,2]
[374666699,1753405845736,-460.0,0.00017989,2]
[374666700,1753405845745,-2698.01,0.00017989,2]
[374666701,1753405845755,-550.66,0.00017989,2]
[374666702,1753405845766,-1284.55,0.00017989,2]
[374666703,1753405845775,-5026.12,0.00017989,2]
[374666704,1753405845785,-3778.26,0.00017989,2]
[374666705,1753405845794,-516.32,0.00017989,2]
[374666706,1753405845804,-460.0,0.0001799,2]
[374666707,1753405845814,-460.0,0.0001799,2]
[374666708,1753405845824,-460.0,0.0001799,2]
[374666709,1753405845834,-460.0,0.0001799,2]
[374666710,1753405845844,-460.0,0.0001799,2]
[374666711,1753405845854,-460.0,0.0001799,2]
[374666712,1753405845865,-460.0,0.0001799,2]
[374666714,1753405845874,-460.0,0.0001799,2]
[374666715,1753405845884,-479.33626948,0.0001799,2]
[374666717,1753405845894,-460.0,0.0001799,2]
[374666719,1753405845904,-614.02,0.0001799,2]
[374666721,1753405845914,-460.0,0.0001799,2]
[374666723,1753405845923,-460.0,0.0001799,2]
[374666724,1753405845933,-460.0,0.0001799,2]
[374666726,1753405845943,-460.0,0.0001799,2]
[374666727,1753405845953,-460.0,0.0001799,2]
[374666728,1753405845963,-460.0,0.0001799,2]
[374666729,1753405845972,-460.0,0.0001799,2]
[374666730,1753405845982,-512.6028991,0.0001799,2]
[374666731,1753405845991,-460.0,0.0001799,2]
[374666732,1753405846001,-878.92,0.0001799,2]
[374666733,1753405846011,-460.0,0.0001799,2]
[374666734,1753405846021,-843.8,0.0001799,2]
[374666735,1753405846030,-345.70349381,0.0001799,2]
[374666736,1753405846040,-460.0,0.0001799,2]
[374666737,1753405846049,-460.0,0.0001799,2]
[374666738,1753405846062,-460.0,0.0001799,2]
[374666739,1753405846072,-242.69427993,0.00017996,2]
[374666740,1753405846081,-460.0,0.00017996,2]
[374666741,1753405846091,-460.0,0.00017996,2]
[374666742,1753405846101,-460.0,0.00017996,2]
[374666743,1753405846110,-460.0,0.00017996,2]
[374666744,1753405846119,-460.0,0.00017996,2]
[374666745,1753405846128,-468.80909873,0.00017996,2]
[374666746,1753405846138,-307.41704682,0.00017996,2]
[374666747,1753405846147,-1979.39,0.00017996,2]
[374666748,1753405846157,-631.28,0.00017996,2]
[374666749,1753405846167,-460.0,0.00017996,2]
[374666750,1753405846177,-460.0,0.00017996,2]
[374666751,1753405846187,-217.0238509,0.00017996,2]
[374666752,1753405846196,-942.95,0.00017996,2]
[374666753,1753405846206,-460.0,0.00017996,2]
[374666754,1753405846216,-460.0,0.00017996,2]
[374666755,1753405846226,-460.0,0.00017996,2]
[374666756,1753405846235,-460.0,0.00017996,2]
[374666757,1753405846245,-460.0,0.00017996,2]
[374666758,1753405846255,-500.0,0.00017996,2]
[374666759,1753405846265,-500.0,0.00017996,2]
[374666760,1753405846275,-500.0,0.00017996,2]
[374666761,1753405846284,-500.0,0.00017996,2]
[374666762,1753405846294,-460.0,0.00017996,2]
[374666763,1753405846305,-460.0,0.00017996,2]
[374666764,1753405846315,-460.0,0.00017996,2]
[374666765,1753405846324,-460.0,0.00017996,2]
[374666766,1753405846334,-460.0,0.00017996,2]
[374666767,1753405846344,-460.0,0.00017996,2]
[374666768,1753405846353,-497.3,0.00017996,2]
[374666769,1753405846363,-1681.11,0.00017996,2]
[374666770,1753405846373,-675.8,0.00017996,2]
[374666771,1753405846382,-460.0,0.00017996,2]
[374666772,1753405846392,-460.0,0.00017996,2]
[374666773,1753405846402,-756.57,0.00017996,2]
[374666774,1753405846412,-821.38,0.00017996,2]
[374666775,1753405846423,-460.0,0.00017996,2]
[374666776,1753405846433,-526.09,0.00017996,2]
[374666777,1753405846442,-759.71,0.00017996,2]
[374666778,1753405846452,-524.24,0.00017996,2]
[374666779,1753405846462,-460.0,0.00017996,2]
[374666780,1753405846471,-460.0,0.00017996,2]
[374666781,1753405846480,-460.0,0.00017996,2]
[374666782,1753405846491,-460.0,0.00017996,2]
[374666783,1753405846500,-460.0,0.00017996,2]
[374666784,1753405846510,-460.0,0.00017996,2]
[374666785,1753405846520,-738.71,0.00017996,2]
[374666786,1753405846530,-500.0,0.00017997,2]
[374666787,1753405846540,-500.0,0.00017998,2]
[374666788,1753405846550,-460.0,0.00017999,2]
[374666789,1753405846562,-381.95065544,0.00017999,2]
[374666790,1753405846572,-460.0,0.00017999,2]
[374666791,1753405846582,-460.0,0.00017999,2]
[374666792,1753405846592,-460.0,0.00017999,2]
[374666793,1753405846602,-460.0,0.00017999,2]
[374666794,1753405846613,-460.0,0.00017999,2]
[374666795,1753405846623,-460.0,0.00017999,2]
[374666796,1753405846633,-460.0,0.00017999,2]
[374666797,1753405846642,-500.0,0.00017999,2]
[374666798,1753405846652,-460.0,0.00017999,2]
[374666799,1753405846661,-460.0,0.00017999,2]
[374666801,1753405846671,-460.0,0.00017999,2]
[374666802,1753405846680,-546.94,0.00017999,2]
[374666803,1753405846690,-460.0,0.00017999,2]
[374666804,1753405846700,-460.0,0.00017999,2]
[374666805,1753405846709,-460.0,0.00017999,2]
[374666806,1753405846719,-460.0,0.00017999,2]
[374666807,1753405846728,-460.0,0.00017999,2]
[374666808,1753405846738,-460.0,0.00017999,2]
[374666809,1753405846748,-460.0,0.00017999,2]
[374666810,1753405846757,-460.0,0.00017999,2]
[374666811,1753405846767,-460.0,0.00017999,2]
[374666812,1753405846776,-460.0,0.00017999,2]
[374666813,1753405846786,-548.26,0.00017999,2]
[374666814,1753405846795,-460.0,0.00017999,2]
[374666815,1753405846806,-460.0,0.00017999,2]
[374666816,1753405846816,-460.0,0.00017999,2]
[374666817,1753405846826,-460.0,0.00017999,2]
[374666818,1753405846835,-461.60296107,0.00017999,2]
[374666819,1753405846845,-460.0,0.00017999,2]
[374666820,1753405846855,-460.0,0.00017999,2]
[374666821,1753405846865,-460.0,0.00017999,2]
[374666822,1753405846874,-460.0,0.00017999,2]
[374666823,1753405846884,-460.0,0.00017999,2]
[374666824,1753405846894,-460.0,0.00017999,2]
[374666825,1753405846904,-460.0,0.00017999,2]
[374666826,1753405846914,-932.05,0.00017999,2]
[374666827,1753405846924,-460.0,0.00017999,2]
[374666828,1753405846933,-460.0,0.00017999,2]
[374666829,1753405846942,-460.0,0.00017999,2]
[374666830,1753405846952,-460.0,0.00017999,2]
[374666831,1753405846962,-460.0,0.00017999,2]
[374666833,1753405846971,-460.0,0.00017999,2]
[374666835,1753405846980,-460.0,0.00017999,2]
[374666837,1753405846990,-460.0,0.00017999,2]
[374666839,1753405846999,-698.6,0.00017999,2]
[374666841,1753405847009,-460.0,0.00017999,2]
[374666843,1753405847018,-460.0,0.00017999,2]
[374666845,1753405847027,-460.0,0.00017999,2]
[374666847,1753405847037,-181.40717841,0.00017999,2]
[374666849,1753405847046,-460.0,0.00017999,2]
[374666851,1753405847059,-460.0,0.00017999,2]
[374666853,1753405847069,-460.0,0.00017999,2]
[374666855,1753405847078,-460.0,0.00017999,2]
[374666857,1753405847087,-460.0,0.00017999,2]
[374666860,1753405847100,-460.0,0.00017999,2]
[374666862,1753405847111,-543.12019415,0.00017999,2]
[374666864,1753405847120,-460.0,0.00017999,2]
[374666866,1753405847130,-460.0,0.00017999,2]
[374666868,1753405847141,-993.5,0.00017999,2]
[374666870,1753405847151,-461.39696154,0.00017999,2]
[374666872,1753405847160,-460.0,0.00017999,2]
[374666874,1753405847169,-151.0,0.00018,2]
[374666876,1753405847178,-151.0,0.00018,2]
[374666878,1753405847188,-4088.1679559,0.00018017,2]
[374666879,1753405847197,-4359.35292185,0.00018038,2]
[374666880,1753405847207,-4239.43017027,0.00018072,2]
[374666881,1753405847216,-151.0,0.000181,2]
[374666883,1753405847226,-460.0,0.00018115,2]
[374666885,1753405847235,-460.0,0.00018115,2]
[374666886,1753405847244,-460.0,0.00018115,2]
[374666887,1753405847254,-460.0,0.00018115,2]
[374666889,1753405847264,-460.0,0.00018115,2]
[374666890,1753405847273,-839.14,0.00018115,2]
[374666892,1753405847284,-460.0,0.00018115,2]
[374666893,1753405847294,-891.45,0.00018115,2]
[374666894,1753405847305,-3004.04,0.00018115,2]
[374666895,1753405847314,-460.0,0.00018115,2]
[374666896,1753405847325,-808.95,0.00018115,2]
[374666897,1753405847334,-460.0,0.00018117,2]
[374666898,1753405847344,-460.0,0.00018117,2]
[374666899,1753405847354,-664.13,0.00018117,2]
[374666900,1753405847363,-636.45,0.00018117,2]
[374666901,1753405847373,-460.0,0.00018117,2]
[374666902,1753405847383,-460.0,0.00018117,2]
[374666903,1753405847392,-460.0,0.00018117,2]
[374666904,1753405847401,-460.0,0.00018117,2]
[374666905,1753405847411,-460.0,0.00018117,2]
[374666906,1753405847420,-462.31238432,0.00018117,2]
[374666907,1753405847544,-460.0,0.00018117,2]
[374666908,1753405847555,-537.55006985,0.00018117,2]
[374666909,1753405847564,-8109.86,0.00018117,2]
[374666910,1753405847573,-4205.78,0.00018117,2]
[374666911,1753405847582,-460.0,0.00018117,2]
[374666912,1753405847591,-828.63,0.00018117,2]
[374666913,1753405847600,-460.0,0.00018117,2]
[374666914,1753405847608,-1045.24,0.00018117,2]
[374666915,1753405847618,-460.0,0.00018117,2]
[374666916,1753405847627,-876.12,0.00018117,2]
[374666917,1753405847637,-460.0,0.00018117,2]
[374666918,1753405847647,-3080.87,0.00018117,2]
[374666919,1753405847656,-630.25,0.00018117,2]
[374666920,1753405847665,-460.0,0.00018117,2]
[374666921,1753405847674,-460.0,0.00018117,2]
[374666922,1753405847683,-460.0,0.00018117,2]
[374666923,1753405847692,-2623.82,0.00018117,2]
[374666924,1753405847701,-1224.91,0.00018117,2]
[374666925,1753405847710,-729.01,0.00018117,2]
[374666926,1753405847719,-460.62184011,0.00018119,2]
[374666927,1753405847727,-460.0,0.00018119,2]
[374666928,1753405847737,-464.18986131,0.00018119,2]
[374666929,1753405847747,-460.0,0.00018119,2]
[374666930,1753405847756,-460.0,0.00018119,2]
[374666931,1753405847766,-460.0,0.00018119,2]
[374666932,1753405847777,-460.0,0.00018119,2]
[374666933,1753405847787,-460.0,0.00018119,2]
[374666934,1753405847797,-460.0,0.00018119,2]
[374666935,1753405847809,-460.0,0.00018119,2]
[374666936,1753405847820,-269.04292403,0.00018119,2]
[374666937,1753405847830,-460.0,0.00018119,2]
[374666938,1753405847840,-461.16201749,0.00018119,2]
[374666939,1753405847850,-460.0,0.00018119,2]
[374666940,1753405847859,-460.0,0.00018119,2]
[374666941,1753405847869,-460.0,0.00018119,2]
[374666942,1753405847878,-829.26,0.00018119,2]
[374666943,1753405847889,-641.73,0.00018119,2]
[374666944,1753405847899,-460.0,0.00018119,2]
[374666945,1753405847908,-460.0,0.00018119,2]
[374666946,1753405847917,-460.0,0.00018119,2]
[374666947,1753405847927,-460.0,0.00018119,2]
[374666948,1753405847937,-460.0,0.00018119,2]
[374666949,1753405847946,-460.0,0.00018119,2]
[374666950,1753405847955,-460.0,0.00018119,2]
[374666951,1753405847965,-460.0,0.00018119,2]
[374666952,1753405847974,-460.0,0.00018119,2]
[374666953,1753405847983,-460.0,0.00018119,2]
[374666954,1753405847992,-797.44,0.00018119,2]
[374666955,1753405848002,-460.0,0.00018119,2]
[374666956,1753405848011,-1009.95,0.00018119,2]
[374666957,1753405848020,-1461.37,0.00018119,2]
[374666958,1753405848029,-873.27,0.00018119,2]
[374666959,1753405848039,-460.0,0.00018119,2]
[374666960,1753405848047,-720.64,0.00018119,2]
[374666961,1753405848059,-460.0,0.00018119,2]
[374666962,1753405848070,-478.9,0.00018119,2]
[374666963,1753405848079,-460.0,0.00018119,2]
[374666964,1753405848088,-2863.12,0.00018119,2]
[374666965,1753405848098,-460.0,0.00018119,2]
[374666966,1753405848107,-570.91,0.00018119,2]
[374666967,1753405848116,-460.0,0.00018119,2]
[374666968,1753405848126,-460.0,0.00018119,2]
[374666969,1753405848135,-1139.2,0.00018119,2]
[374666970,1753405848144,-460.0,0.00018119,2]
[374666971,1753405848153,-576.02,0.00018119,2]
[374666972,1753405848163,-460.0,0.00018119,2]
[374666973,1753405848172,-460.0,0.00018119,2]
[374666974,1753405848181,-831.56,0.00018119,2]
[374666975,1753405848191,-1082.99,0.00018119,2]
[374666976,1753405848201,-1185.33,0.00018119,2]
[374666977,1753405848211,-1580.14,0.00018119,2]
[374666978,1753405848220,-460.0,0.00018119,2]
[374666979,1753405848229,-460.0,0.00018119,2]
[374666980,1753405848239,-460.0,0.00018119,2]
[374666981,1753405848248,-460.0,0.00018119,2]
[374666982,1753405848258,-842.02,0.00018119,2]
[374666983,1753405848268,-630.13,0.00018119,2]
[374666984,1753405848278,-460.0,0.00018119,2]
[374666985,1753405848288,-460.0,0.00018119,2]
[374666986,1753405848298,-460.0,0.00018119,2]
[374666987,1753405848310,-460.0,0.00018119,2]
[374666988,1753405848321,-460.0,0.00018119,2]
[374666989,1753405848330,-460.0,0.00018119,2]
[374666990,1753405848340,-460.0,0.00018119,2]
[374666991,1753405848350,-460.0,0.00018119,2]
[374666992,1753405848360,-460.0,0.00018119,2]
[374666993,1753405848369,-310.55750851,0.00018119,2]
[374666994,1753405848379,-460.0,0.00018119,2]
[374666995,1753405848388,-272.13618868,0.00018119,2]
[374666996,1753405848397,-825.34,0.00018119,2]
[374666997,1753405848406,-1609.8,0.00018119,2]
[374666998,1753405848416,-873.2,0.00018119,2]
[374666999,1753405848425,-851.14,0.0001814,2]
[374667000,1753405848435,-460.0,0.0001814,2]
[374667001,1753405848445,-559.16821432,0.0001814,2]
[374667002,1753405848454,-460.0,0.0001814,2]
[374667003,1753405848464,-460.96777566,0.0001814,2]
[374667004,1753405848473,-460.0,0.0001814,2]
[374667005,1753405848483,-460.0,0.0001814,2]
[374667006,1753405848492,-462.83995246,0.0001814,2]
[374667007,1753405848501,-460.0,0.0001814,2]
[374667008,1753405848510,-517.14465111,0.0001814,2]
[374667009,1753405848520,-460.56559248,0.0001814,2]
[374667010,1753405848529,-460.0,0.0001814,2]
[374667011,1753405848538,-460.0,0.0001814,2]
[374667012,1753405848548,-460.0,0.0001814,2]
[374667013,1753405848558,-460.0,0.0001814,2]
[374667014,1753405848567,-460.0,0.0001814,2]
[374667015,1753405848576,-460.0,0.0001814,2]
[374667016,1753405848585,-500.0,0.0001814,2]
[374667017,1753405848595,-460.0,0.0001814,2]
[374667018,1753405848604,-460.0,0.0001814,2]
[374667019,1753405848614,-460.0,0.0001814,2]
[374667020,1753405848623,-460.0,0.0001814,2]
[374667021,1753405848634,-460.0,0.0001814,2]
[374667022,1753405848644,-460.0,0.0001814,2]
[374667023,1753405848654,-460.0,0.0001814,2]
[374667024,1753405848664,-460.0,0.0001814,2]
[374667025,1753405848673,-461.02981099,0.0001814,2]
[374667026,1753405848683,-460.0,0.0001814,2]
[374667027,1753405848693,-460.0,0.0001814,2]
[374667028,1753405848703,-461.71210192,0.0001814,2]
[374667029,1753405848714,-460.0,0.0001814,2]
[374667030,1753405848723,-1129.03,0.0001814,2]
[374667031,1753405848734,-460.0,0.0001814,2]
[374667032,1753405848744,-338.72069552,0.0001814,2]
[374667033,1753405848754,-460.0,0.0001814,2]
[374667034,1753405848764,-460.0,0.0001814,2]
[374667035,1753405848774,-460.0,0.00018162,2]
[374667036,1753405848784,-460.0,0.00018162,2]
[374667037,1753405848793,-460.0,0.00018162,2]
[374667038,1753405848803,-460.0,0.00018162,2]
[374667039,1753405848813,-460.0,0.00018162,2]
[374667040,1753405848823,-460.0,0.00018162,2]
[374667041,1753405848833,-460.0,0.00018162,2]
[374667042,1753405848842,-460.0,0.00018162,2]
[374667043,1753405848852,-460.0,0.00018162,2]
[374667044,1753405848863,-280.68393489,0.00018162,2]
[374667045,1753405848872,-634.74,0.00018162,2]
[374667046,1753405848882,-460.0,0.00018162,2]
[374667047,1753405848891,-460.0,0.00018162,2]
[374667048,1753405848901,-1638.24,0.00018162,2]
[374667049,1753405848911,-1280.01,0.00018162,2]
[374667050,1753405848921,-545.16,0.00018162,2]
[374667051,1753405848931,-516.35,0.00018162,2]
[374667052,1753405848941,-160.64,0.00018162,2]
[374667053,1753405848951,-632.2,0.00018162,2]
[374667054,1753405848960,-1029.2,0.00018162,2]
[374667055,1753405848969,-6996.8,0.00018162,2]
[374667056,1753405848979,-2763.92,0.00018162,2]
[374667057,1753405848989,-3705.07578213,0.00018174,2]
[374667058,1753405848998,-4359.35292185,0.00018176,2]
[374667059,1753405849008,-24815.01001417,0.00018178,2]
[374667060,1753405849019,-1000.0,0.00018221,2]
[374667061,1753405849028,-1000.0,0.00018221,2]
[374667062,1753405849038,-500.0,0.00018221,2]
[374667063,1753405849048,-424.80703423,0.00018221,2]
[374667064,1753405849061,-504.13604337,0.00018221,2]
[374667065,1753405849072,-1000.0,0.00018221,2]
[374667066,1753405849081,-1000.0,0.00018221,2]
[374667067,1753405849092,-356.84837773,0.00018221,2]
[374667068,1753405849103,-501.57043918,0.00018221,2]
[374667069,1753405849113,-1000.0,0.00018221,2]
[374667070,1753405849123,-501.09762297,0.00018235,2]
[374667071,1753405849133,-500.0,0.00018235,2]
[374667072,1753405849143,-500.0,0.00018238,2]
[374667073,1753405849154,-500.0,0.00018238,2]
[374667074,1753405849164,-460.0,0.00018241,2]
[374667075,1753405849174,-460.0,0.00018241,2]
[374667076,1753405849184,-460.0,0.00018241,2]
[374667077,1753405849194,-460.0,0.00018241,2]
[374667078,1753405849204,-460.0,0.00018241,2]
[374667079,1753405849214,-460.0,0.00018241,2]
[374667080,1753405849224,-470.3,0.00018241,2]
[374667081,1753405849234,-232.6345165,0.00018243,2]
[374667082,1753405849243,-500.0,0.00018246,2]
[374667083,1753405849253,-460.0,0.0001826,2]
[374667084,1753405849263,-410.60474612,0.0001826,2]
[374667085,1753405849272,-460.0,0.0001826,2]
[374667086,1753405849281,-797.25,0.0001826,2]
[374667087,1753405849291,-350.9182563,0.0001826,2]
[374667088,1753405849301,-350.9182563,0.0001826,2]
[374667089,1753405849311,-460.69283884,0.0001826,2]
[374667090,1753405849321,-165.69737655,0.0001826,2]
[374667091,1753405849331,-460.0,0.0001826,2]
[374667092,1753405849341,-460.0,0.0001826,2]
[374667093,1753405849350,-1339.86,0.0001826,2]
[374667094,1753405849361,-1455.26,0.0001826,2]
[374667095,1753405849370,-646.53,0.0001826,2]
[374667096,1753405849380,-689.47,0.0001826,2]
[374667097,1753405849390,-1116.98,0.0001826,2]
[374667098,1753405849400,-2881.55,0.0001826,2]
[374667099,1753405849409,-4319.45,0.0001826,2]
[374667100,1753405849418,-460.0,0.0001826,2]
[374667101,1753405849428,-460.0,0.0001826,2]
[374667102,1753405849437,-4169.87,0.0001826,2]
[374667103,1753405849447,-460.0,0.0001826,2]
[374667104,1753405849456,-2789.02,0.0001826,2]
[374667105,1753405849465,-1289.13,0.0001826,2]
[374667106,1753405849475,-460.0,0.0001826,2]
[374667107,1753405849485,-460.0,0.00018262,2]
[374667108,1753405849494,-460.0,0.00018262,2]
[374667109,1753405849504,-460.0,0.00018262,2]
[374667110,1753405849514,-806.93,0.00018262,2]
[374667111,1753405849523,-460.0,0.00018262,2]
[374667112,1753405849533,-588.4525315,0.00018262,2]
[374667113,1753405849542,-460.0,0.00018262,2]
[374667114,1753405849552,-460.0,0.00018262,2]
[374667115,1753405849563,-460.0,0.00018262,2]
[374667116,1753405849573,-460.0,0.00018262,2]
[374667117,1753405849583,-460.0,0.00018262,2]
[374667118,1753405849592,-552.15,0.00018262,2]
[374667119,1753405849602,-676.46,0.00018262,2]
[374667120,1753405849612,-173.45800975,0.00018262,2]
[374667121,1753405849621,-460.0,0.00018262,2]
[374667122,1753405849631,-904.33,0.00018262,2]
[374667123,1753405849641,-460.0,0.00018262,2]
[374667124,1753405849651,-1156.4,0.00018262,2]
[374667125,1753405849661,-500.81,0.00018262,2]
[374667126,1753405849778,-460.0,0.00018262,2]
[374667127,1753405849787,-460.0,0.00018262,2]
[374667128,1753405849797,-680.32,0.00018262,2]
[374667129,1753405849806,-460.0,0.00018262,2]
[374667130,1753405849816,-1029.72,0.00018262,2]
[374667131,1753405849826,-460.0,0.00018262,2]
[374667132,1753405849836,-723.77,0.00018262,2]
[374667133,1753405849845,-460.0,0.00018262,2]
[374667134,1753405849855,-460.0,0.00018262,2]
[374667135,1753405849865,-460.0,0.00018262,2]
[374667136,1753405849875,-471.90720261,0.00018262,2]
[374667137,1753405849885,-770.55,0.00018262,2]
[374667138,1753405849895,-460.0,0.00018262,2]
[374667139,1753405849904,-460.0,0.00018262,2]
[374667140,1753405849914,-460.0,0.00018262,2]
[374667141,1753405849923,-1464.77,0.00018262,2]
[374667142,1753405849933,-460.0,0.00018262,2]
[374667143,1753405849943,-1451.71,0.00018262,2]
[374667144,1753405849953,-375.11701123,0.00018262,2]
[374667145,1753405849962,-460.0,0.00018262,2]
[374667146,1753405849971,-460.0,0.00018262,2]
[374667147,1753405849981,-600.06,0.00018262,2]
[374667148,1753405849991,-460.0,0.00018262,2]
[374667149,1753405850000,-460.0,0.00018262,2]
[374667150,1753405850010,-460.0,0.00018262,2]
[374667151,1753405850031,-460.0,0.00018262,2]
[374667152,1753405850041,-460.0,0.00018262,2]
[374667153,1753405850052,-649.29,0.00018262,2]
[374667154,1753405850065,-460.0,0.00018262,2]
[374667155,1753405850075,-460.0,0.00018262,2]
[374667156,1753405850085,-632.98,0.00018262,2]
[374667157,1753405850095,-700.52,0.00018262,2]
[374667158,1753405850105,-570.48,0.00018262,2]
[374667159,1753405850115,-460.0,0.00018262,2]
[374667160,1753405850125,-1352.89,0.00018262,2]
[374667161,1753405850136,-1205.96,0.00018262,2]
[374667162,1753405850146,-696.97,0.00018262,2]
[374667163,1753405850157,-542.27,0.00018262,2]
[374667164,1753405850168,-460.0,0.00018262,2]
[374667165,1753405850178,-625.29,0.00018262,2]
[374667166,1753405850188,-2698.01,0.00018263,2]
[374667167,1753405850199,-550.66,0.00018263,2]
[374667168,1753405850210,-1284.55,0.00018263,2]
[374667169,1753405850220,-5026.12,0.00018263,2]
[374667170,1753405850231,-3778.26,0.00018263,2]
[374667171,1753405850241,-516.32,0.00018263,2]
[374667172,1753405850251,-460.0,0.00018264,2]
[374667173,1753405850261,-460.0,0.00018264,2]
[374667174,1753405850271,-448.57007102,0.00018264,2]
[374667175,1753405850281,-460.0,0.00018264,2]
[374667176,1753405850292,-460.0,0.00018264,2]
[374667177,1753405850302,-460.0,0.00018264,2]
[374667178,1753405850313,-526.80176444,0.00018264,2]
[374667179,1753405850323,-460.0,0.00018264,2]
[374667180,1753405850333,-614.02,0.00018264,2]
[374667181,1753405850343,-545.46892224,0.00018264,2]
[374667182,1753405850353,-460.0,0.00018264,2]
[374667183,1753405850364,-460.0,0.00018264,2]
[374667184,1753405850374,-460.0,0.00018264,2]
[374667185,1753405850384,-460.0,0.00018264,2]
[374667186,1753405850394,-460.0,0.00018264,2]
[374667187,1753405850404,-878.92,0.00018264,2]
[374667188,1753405850415,-460.0,0.00018264,2]
[374667189,1753405850425,-843.8,0.00018264,2]
[374667190,1753405850436,-460.0,0.00018264,2]
[374667191,1753405850446,-460.0,0.00018264,2]
[374667192,1753405850456,-460.0,0.00018264,2]
[374667193,1753405850466,-150.88731336,0.0001827,2]
[374667194,1753405850476,-179.89312685,0.0001827,2]
[374667195,1753405850486,-460.0,0.0001827,2]
[374667196,1753405850497,-460.0,0.0001827,2]
[374667197,1753405850507,-460.0,0.0001827,2]
[374667198,1753405850517,-1979.39,0.0001827,2]
[374667199,1753405850527,-631.28,0.0001827,2]
[374667200,1753405850537,-460.0,0.0001827,2]
[374667201,1753405850547,-460.0,0.0001827,2]
[374667202,1753405850558,-942.95,0.0001827,2]
[374667203,1753405850569,-460.0,0.0001827,2]